bitfinex/quotes_ETHUSD_20240709
["timestamp","ask_amount","ask_price","bid_price","bid_amount"]
[1720520137083,1.69130833,3102.7,3102.3,3.22333]
[1720520137084,0.44824646,3102.6,3102.3,3.22333]
[1720520137289,5.19564646,3102.5,3101.8,0.447992]
[1720520137515,2.03015694,3101.9,3101.8,0.407992]
[1720520137719,1.65291482,3101.9,3101.8,0.407992]
[1720520137900,4.74775795,3101.9,3100.4,3.22532]
[1720520138117,1.69210322,3101.2,3100.5,3.22522]
[1720520138285,0.44824646,3101.1,3100.5,3.22522]
[1720520138691,0.44824646,3101.1,3100.3,3.22541]
[1720520139144,0.44824646,3101.1,3100.0,5.68954]
[1720520139326,0.44824646,3101.0,3100.0,5.68954]
[1720520139636,0.06462145,3100.9,3100.1,3.22569]
[1720520139939,0.06462145,3100.9,3100.0,5.68952]
[1720520140240,0.44898935,3100.8,3100.0,5.68952]
[1720520140547,0.44898935,3100.8,3099.8,3.22596]
[1720520140548,0.44898935,3100.7,3099.8,3.22596]
[1720520140692,0.44898935,3100.6,3099.9,3.22588]
[1720520140893,0.06462145,3100.9,3099.9,3.22588]
[1720520141123,0.62442294,3100.8,3099.9,3.22588]
[1720520141328,0.06462145,3100.7,3099.9,3.22588]
[1720520141664,1.75365532,3101.0,3099.9,3.22588]
[1720520141791,0.44907646,3100.9,3099.9,3.22588]
[1720520142133,0.28489463,3100.8,3099.9,3.22588]
[1720520142292,0.06462145,3100.7,3099.9,3.22588]
[1720520142492,2.421,3101.1,3099.9,3.22588]
[1720520142493,0.06462145,3101.0,3099.9,3.22588]
[1720520142693,0.44907725,3100.9,3099.9,3.22588]
[1720520142907,0.06462145,3100.8,3099.9,3.22588]
[1720520143899,2.421,3101.1,3099.7,3.22609]
[1720520143900,0.06462145,3101.0,3099.7,3.22609]
[1720520144101,0.24856215,3100.9,3099.8,3.0]
[1720520144296,0.06462145,3100.8,3099.8,3.0]
[1720520144642,0.06462145,3100.8,3099.7,3.22603]
[1720520144847,0.06462145,3100.8,3099.3,3.22644]
[1720520144848,0.33698485,3100.7,3099.3,3.22644]
[1720520145147,0.06462145,3100.6,3099.4,3.22642]
[1720520145295,0.06462145,3100.6,3099.5,3.22632]
[1720520146837,0.06462145,3100.6,3099.6,3.22621]
[1720520148453,2.2623,3100.5,3099.2,3.22655]
[1720520148598,0.2973136,3100.4,3099.4,3.22639]
[1720520148794,3.2973136,3100.4,3099.4,3.22639]
[1720520149029,3.2973136,3100.4,3099.4,3.22635]
[1720520149398,3.2973136,3100.4,3099.4,3.22634]
[1720520149601,0.55596136,3100.3,3099.4,6.45269]
[1720520149831,0.06462145,3100.2,3099.5,3.22631]
[1720520151543,0.55596136,3100.3,3099.2,3.22654]
[1720520151715,0.37886535,3100.2,3099.3,3.22653]
[1720520151900,0.37886535,3100.2,3099.4,3.22632]
[1720520152103,0.37886535,3100.2,3099.6,3.22621]
[1720520152834,0.23269215,3100.4,3099.9,3.22587]
[1720520153082,7.36,3100.6,3100.0,3.2258]
[1720520154319,7.36,3100.6,3099.4,3.2264]
[1720520154320,7.36,3100.6,3099.6,3.22614]
[1720520154550,7.36,3100.6,3099.4,3.22637]
[1720520154551,2.41522145,3100.5,3099.4,3.22637]
[1720520154738,2.41522145,3100.5,3099.5,3.22626]
[1720520154739,0.97752215,3100.4,3099.5,3.22626]
[1720520155736,0.97752215,3100.4,3099.6,3.22619]
[1720520156827,0.97752215,3100.4,3099.7,3.22611]
[1720520157961,0.97752215,3100.4,3099.4,3.22636]
[1720520158167,0.63281222,3100.3,3099.4,3.22636]
[1720520158846,0.63281222,3100.3,3099.7,3.2261]
[1720520159228,5.3506,3100.5,3099.8,3.22598]
[1720520159430,5.3506,3100.5,3099.9,3.22584]
[1720520162040,5.3506,3100.5,3099.7,6.45213]
[1720520162237,5.3506,3100.5,3099.6,3.22615]
[1720520162238,2.3506,3100.5,3099.6,3.22615]
[1720520162532,0.54152215,3100.4,3099.7,3.22611]
[1720520162732,0.54152215,3100.4,3099.7,6.45216]
[1720520163270,0.33701727,3100.3,3099.7,6.45216]
[1720520163638,0.33701727,3100.3,3099.8,3.226]
[1720520164293,0.54152215,3100.4,3099.8,3.226]
[1720520164752,7.36,3100.9,3100.2,3.22552]
[1720520164753,9.7923,3100.9,3100.2,3.22552]
[1720520164949,3.0,3100.8,3100.2,3.22552]
[1720520165152,3.0,3100.8,3100.2,6.45106]
[1720520165334,3.0,3100.8,3100.2,3.22552]
[1720520165770,3.0,3100.8,3100.2,6.45106]
[1720520165981,9.7923,3100.9,3100.2,6.45106]
[1720520166185,9.7923,3100.9,3099.7,5.58849]
[1720520166186,7.36,3100.9,3100.5,3.2252]
[1720520166492,9.6956,3101.3,3100.5,3.2252]
[1720520166637,0.96956,3101.2,3100.5,3.2252]
[1720520167256,0.96956,3101.2,3100.6,3.22516]
[1720520167741,3.96956,3101.2,3100.6,3.22516]
[1720520174331,0.86269085,3101.1,3099.7,2.3624]
[1720520174480,1.49320685,3101.1,3100.2,3.22558]
[1720520176718,2.2963,3101.0,3099.8,3.22594]
[1720520176932,0.06462145,3100.9,3099.8,3.22594]
[1720520177087,0.23609215,3100.8,3099.8,3.22594]
[1720520177286,2.54512145,3100.7,3099.8,3.22594]
[1720520177598,3.0,3100.6,3099.6,3.22615]
[1720520177793,0.06462145,3100.5,3099.6,6.45231]
[1720520178098,0.30646215,3100.4,3099.6,6.45231]
[1720520178608,0.30646215,3100.4,3099.6,3.22615]
[1720520178984,0.06462145,3100.3,3099.6,3.22615]
[1720520179388,0.06462145,3100.3,3099.0,2.4009]
[1720520179389,2.2525,3100.2,3099.3,3.22653]
[1720520179592,0.06462145,3100.1,3099.3,3.22653]
[1720520179819,0.23171215,3100.0,3099.3,3.22653]
[1720520180529,2.2525,3100.2,3099.5,3.22624]
[1720520180903,2.2525,3100.2,3099.6,3.22622]
[1720520181113,5.61309,3100.6,3099.7,0.0645199]
[1720520181433,0.44895345,3100.5,3099.9,3.22584]
[1720520181592,0.23609215,3100.8,3100.0,0.06450861]
[1720520181791,0.23609215,3100.8,3099.9,3.22584]
[1720520181792,0.44892752,3100.7,3099.9,3.22584]
[1720520182027,3.22518,3100.6,3099.8,3.226]
[1720520182192,0.44892752,3100.5,3099.6,3.22615]
[1720520182390,3.67426752,3100.5,3099.6,3.22615]
[1720520182705,2.253,3100.3,3099.6,3.22615]
[1720520182911,0.44892752,3100.2,3099.6,3.22615]
[1720520183113,0.44892752,3100.2,3099.1,3.22667]
[1720520183114,3.22592,3099.9,3099.1,3.22667]
[1720520183313,0.44892752,3099.8,3099.1,3.22667]
[1720520183714,0.44892752,3099.8,3099.2,3.22658]
[1720520183929,0.44892752,3099.7,3099.2,6.45313]
[1720520184098,0.44892752,3099.6,3099.3,3.22653]
[1720520184304,3.2257,3100.1,3099.3,3.22653]
[1720520184500,0.44888932,3100.0,3099.3,3.22653]
[1720520184734,0.44888932,3100.0,3099.5,3.22629]
[1720520184933,0.44888932,3100.0,3099.5,5.61803]
[1720520185131,0.44884422,3099.9,3099.5,5.61803]
[1720520185347,0.44884422,3099.8,3099.5,5.61803]
[1720520185549,0.44884422,3099.7,3099.5,5.61803]
[1720520185826,7.36,3100.2,3099.5,5.61803]
[1720520185827,0.44884422,3099.6,3099.5,5.61803]
[1720520186031,1.20512845,3100.1,3099.6,3.2262]
[1720520186328,7.36,3100.2,3099.6,3.2262]
[1720520186329,0.44887131,3100.0,3099.6,3.2262]
[1720520186541,0.44887131,3099.9,3099.6,3.2262]
[1720520186879,0.44887131,3099.8,3099.6,3.2262]
[1720520187034,0.44887131,3099.7,3099.6,3.2262]
[1720520187242,0.44887131,3100.1,3099.6,3.2262]
[1720520187548,1.65385655,3100.1,3099.6,3.2262]
[1720520187841,0.44887131,3100.0,3099.6,3.2262]
[1720520188007,0.44887131,3099.9,3099.6,3.2262]
[1720520188210,0.44887131,3099.8,3099.6,3.2262]
[1720520188409,9.05102214,3100.2,3099.8,6.45189]
[1720520188410,7.36,3100.2,3099.8,6.45189]
[1720520188634,0.36742675,3100.4,3099.8,6.45189]
[1720520188635,0.44884072,3100.1,3099.8,6.45189]
[1720520188851,3.0,3100.6,3099.9,3.2259]
[1720520189002,1.69128571,3100.4,3099.9,3.2259]
[1720520189359,0.44884698,3100.3,3099.7,3.22604]
[1720520189503,3.68256759,3100.3,3099.6,3.22616]
[1720520189705,0.44882652,3100.2,3099.8,3.22601]
[1720520190130,0.44882652,3100.2,3099.5,3.22632]
[1720520190352,1.6911885,3100.1,3099.4,3.22635]
[1720520190560,1.65381438,3100.0,3099.4,6.45268]
[1720520190778,3.34500288,3100.0,3099.4,3.22633]
[1720520191065,3.22614,3099.7,3098.9,3.22688]
[1720520191279,3.34471364,3099.6,3098.9,3.22688]
[1720520191461,3.22649,3099.4,3098.6,3.22719]
[1720520191767,0.44882639,3099.3,3098.6,3.22719]
[1720520192333,0.44882639,3099.3,3098.8,3.22705]
[1720520192549,0.44882639,3099.3,3098.9,3.29142116]
[1720520192967,1.69019191,3099.5,3098.9,3.22689]
[1720520192968,0.44882639,3099.2,3098.9,3.22689]
[1720520193167,0.44882639,3099.1,3098.9,3.22689]
[1720520193371,1.69019191,3099.5,3098.9,3.22689]
[1720520193532,0.44884915,3099.4,3098.9,3.22689]
[1720520193877,0.44884915,3099.3,3098.9,3.22689]
[1720520194083,0.44884915,3099.2,3098.9,3.22689]
[1720520194405,1.69019191,3099.5,3098.9,3.22689]
[1720520194576,0.44886248,3099.4,3098.9,3.22689]
[1720520194746,0.44886248,3099.4,3099.0,3.22683]
[1720520195134,6.45215,3099.8,3099.0,3.22683]
[1720520195135,0.44877428,3099.3,3099.0,3.22683]
[1720520195334,1.68900545,3099.6,3099.0,3.22683]
[1720520195559,0.44875685,3099.5,3099.0,3.22683]
[1720520196573,0.44875685,3099.5,3099.0,6.45358]
[1720520196928,0.44875685,3099.4,3099.0,6.45358]
[1720520197132,0.44875685,3099.3,3099.1,3.22673]
[1720520197370,1.68900545,3099.7,3099.1,3.22673]
[1720520197547,0.44871739,3099.6,3099.1,3.22673]
[1720520198778,0.44871739,3099.5,3099.0,3.22684]
[1720520198934,2.13663806,3099.5,3099.0,3.22684]
[1720520199136,0.44871739,3099.4,3098.8,6.45394]
[1720520199541,0.44871739,3099.3,3098.9,3.22693]
[1720520199876,0.44871739,3099.2,3098.9,3.22693]
[1720520200102,2.71936322,3099.7,3099.0,6.45353]
[1720520200235,1.34320954,3099.6,3099.0,6.45353]
[1720520200438,0.44867122,3099.5,3099.0,6.45353]
[1720520200742,0.44867122,3099.5,3099.0,3.22676]
[1720520200954,0.44867122,3099.5,3099.0,3.22683]
[1720520201151,2.13659189,3099.5,3098.9,3.22694]
[1720520201473,0.44867122,3099.4,3098.9,3.22694]
[1720520201987,0.44854625,3099.3,3098.9,3.22688]
[1720520202174,0.62572502,3099.5,3098.9,3.22688]
[1720520202376,0.44853157,3099.4,3098.9,3.22688]
[1720520202576,0.44853157,3099.4,3099.0,3.22682]
[1720520203261,0.44853157,3099.4,3098.8,3.22695]
[1720520203466,1.13670589,3099.4,3098.9,3.22691]
[1720520203669,0.44853157,3099.3,3098.9,3.22691]
[1720520204191,0.44853157,3099.3,3098.7,6.45417]
[1720520204374,0.44853157,3099.3,3098.7,3.22708]
[1720520204575,0.44853157,3099.3,3098.8,3.22705]
[1720520204754,0.33752799,3099.2,3098.8,3.22705]
[1720520204956,0.33752799,3099.2,3098.7,3.22708]
[1720520207176,0.33752799,3099.2,3098.9,3.22685]
[1720520207490,0.33752799,3099.2,3099.1,6.45348]
[1720520207786,0.33752799,3099.2,3099.1,8.75518]
[1720520211309,0.33752799,3099.2,3099.1,6.45348]
[1720520211477,0.33752799,3099.2,3098.9,3.22688]
[1720520211661,0.33752799,3099.2,3098.7,3.22709]
[1720520211861,0.33752799,3099.2,3098.9,3.22692]
[1720520212386,0.33752799,3099.2,3098.7,6.45417]
[1720520212587,0.33752799,3099.2,3098.7,3.22708]
[1720520212987,0.33752799,3099.2,3098.8,3.22704]
[1720520213223,0.33752799,3099.2,3098.7,3.22708]
[1720520214510,0.44833003,3099.1,3098.5,6.45459]
[1720520214716,0.44833003,3099.1,3098.5,3.22729]
[1720520214919,0.69392379,3099.2,3098.5,3.22729]
[1720520215102,0.84683333,3099.1,3098.5,3.22729]
[1720520215300,0.44832381,3099.0,3098.5,3.22729]
[1720520215514,0.44832381,3099.0,3098.5,6.45459]
[1720520215726,0.44832381,3099.0,3098.5,3.22729]
[1720520215897,0.44832381,3099.0,3098.5,6.45459]
[1720520216506,0.44832381,3099.0,3098.5,3.22729]
[1720520217331,1.02548234,3099.0,3098.5,3.22729]
[1720520217543,0.44832381,3098.9,3098.5,3.22729]
[1720520217740,3.67530381,3098.9,3098.1,3.22772]
[1720520217950,0.44832381,3098.8,3098.1,3.22772]
[1720520218270,2.4892,3098.6,3098.1,3.22772]
[1720520218404,0.44828929,3098.5,3098.1,3.22772]
[1720520219235,0.44828929,3098.5,3097.9,3.22792]
[1720520220039,0.33762069,3098.4,3097.9,3.22792]
[1720520220240,0.33762069,3098.4,3098.0,3.22787]
[1720520220450,0.33762069,3098.4,3098.1,3.22771]
[1720520220745,0.33762069,3098.4,3097.7,3.0]
[1720520221045,0.44807841,3098.3,3097.9,3.22793]
[1720520221345,0.44807841,3098.3,3097.7,3.22809]
[1720520221946,0.06462145,3098.2,3097.5,6.45665]
[1720520222130,0.66789161,3098.1,3097.5,3.22831]
[1720520222334,0.44807841,3098.0,3097.6,3.2283]
[1720520222513,0.2198132,3098.1,3097.6,3.2283]
[1720520222852,0.06462145,3098.2,3097.6,3.2283]
[1720520223149,0.06462145,3098.2,3097.5,3.22831]
[1720520223150,0.44787733,3098.1,3097.5,6.45665]
[1720520223354,0.06462145,3098.0,3097.5,3.22831]
[1720520223502,2.3285,3097.9,3097.3,3.22856]
[1720520223855,0.23285,3097.8,3097.3,3.22856]
[1720520224145,2.3285,3097.9,3097.3,3.22856]
[1720520225400,2.2753,3098.2,3097.6,3.22822]
[1720520225638,2.2753,3098.2,3097.7,3.22814]
[1720520226142,0.62030276,3098.4,3097.8,3.22808]
[1720520226304,0.33762069,3098.4,3098.0,3.22786]
[1720520226506,0.33762069,3098.4,3097.6,3.22826]
[1720520226746,3.56509069,3098.4,3097.6,3.22826]
[1720520226958,3.2278,3098.1,3097.2,3.22862]
[1720520227159,3.2278,3098.1,3096.9,2.3642]
[1720520227160,3.22815,3097.8,3096.9,3.22896]
[1720520227308,2.92774953,3097.7,3096.9,3.22895]
[1720520227661,0.44778532,3097.6,3096.9,3.22895]
[1720520227942,0.06462145,3097.5,3096.6,3.22925]
[1720520228168,0.06462145,3097.5,3096.4,3.22947]
[1720520228169,3.22861,3097.4,3096.4,3.22947]
[1720520228456,2.4154,3097.7,3096.3,3.22959]
[1720520228457,3.22884,3097.1,3096.3,3.22959]
[1720520228606,0.322884,3097.0,3096.3,3.22959]
[1720520229042,0.322884,3097.0,3096.4,3.22953]
[1720520229210,2.4154,3097.3,3096.4,3.22953]
[1720520229411,2.4154,3097.3,3096.6,3.22934]
[1720520229913,5.4154,3097.3,3096.6,3.22934]
[1720520230134,3.0,3097.5,3096.8,3.22904]
[1720520230817,3.0,3097.5,3096.8,6.45811]
[1720520231035,1.35883,3097.4,3096.8,6.45811]
[1720520231246,1.35883,3097.4,3096.8,3.22904]
[1720520232022,1.35883,3097.4,3096.0,2.3137]
[1720520232233,1.35883,3097.4,3096.2,3.22975]
[1720520232555,1.35883,3097.4,3096.8,3.22907]
[1720520233270,2.4612,3097.7,3096.7,0.0645773]
[1720520233415,2.4612,3097.7,3095.9,6.404]
[1720520233416,2.4612,3097.7,3097.1,6.45746]
[1720520234357,2.4612,3097.7,3097.2,3.22872]
[1720520235319,0.33758546,3097.6,3097.2,3.22872]
[1720520235973,0.61746401,3097.6,3097.0,3.22885]
[1720520237378,0.33758546,3097.6,3097.2,3.22867]
[1720520237845,0.33758546,3097.6,3096.3,3.22956]
[1720520238183,0.33758546,3097.6,3094.8,4.83061806]
[1720520238184,3.22869,3097.3,3096.4,3.22949]
[1720520238392,0.322869,3097.2,3096.4,3.22949]
[1720520238538,0.06462145,3097.1,3096.4,3.22949]
[1720520238739,2.259,3097.0,3096.2,3.22971]
[1720520238957,0.06462145,3096.9,3096.2,6.45941]
[1720520239156,3.8489166,3096.9,3096.1,3.22984]
[1720520239585,3.8489166,3096.9,3096.0,3.22987]
[1720520240082,3.22914,3096.8,3096.1,3.22986]
[1720520240282,0.44952311,3096.7,3095.8,3.23011]
[1720520240582,0.44952311,3096.7,3095.8,6.46022]
[1720520240583,3.22936,3096.6,3095.8,6.46022]
[1720520241078,3.22936,3096.6,3095.8,3.23011]
[1720520241381,2.4469,3096.5,3095.8,3.23011]
[1720520241554,0.06462145,3096.4,3095.7,3.2302]
[1720520241756,0.06462145,3096.4,3095.6,3.23032]
[1720520241757,3.29421145,3096.4,3095.5,3.23049]
[1720520241972,6.52386145,3096.4,3095.5,3.23049]
[1720520242301,3.23029,3095.7,3094.9,3.23105]
[1720520242778,3.2305,3095.5,3094.7,0.1153191]
[1720520242988,3.2305,3095.5,3094.7,3.3465391]
[1720520243347,3.23087,3095.2,3094.7,0.1153191]
[1720520243545,3.23111,3095.0,3094.7,0.1153191]
[1720520243785,3.23084,3095.2,3094.7,0.1153191]
[1720520243996,2.4385,3095.3,3094.7,0.1153191]
[1720520244200,7.36,3095.5,3095.0,3.231]
[1720520244699,8.719029,3095.5,3095.0,3.231]
[1720520244853,7.36,3095.5,3095.0,3.231]
[1720520245050,7.36,3095.5,3094.8,3.23114]
[1720520245250,10.59056,3095.5,3094.7,0.1153191]
[1720520245488,2.4353,3095.1,3094.7,0.1153191]
[1720520245784,3.23119,3094.9,3094.7,0.1153191]
[1720520245989,0.32958115,3094.8,3094.7,0.1153191]
[1720520246146,6.79202115,3094.8,3094.7,0.1153191]
[1720520246348,3.56080115,3094.8,3094.7,0.1153191]
[1720520248287,0.32958115,3094.8,3094.7,0.1153191]
[1720520248474,3.23115,3094.9,3094.7,0.1153191]
[1720520248876,5.66621,3095.1,3094.7,0.1153191]
[1720520249085,3.23118,3094.9,3094.7,0.1153191]
[1720520249472,3.23122,3094.8,3094.7,0.1153191]
[1720520249655,3.87746,3094.8,3094.7,0.1153191]
[1720520250956,7.72330145,3094.8,3094.7,0.1153191]
[1720520251155,11.21196619,3094.8,3094.7,0.1153191]
[1720520251380,11.21196619,3094.8,3093.4,3.23267]
[1720520251381,3.23179,3094.3,3093.2,3.2328]
[1720520251581,3.23179,3094.3,3092.6,3.23349]
[1720520251582,3.23245,3093.7,3092.7,3.2334]
[1720520251795,3.23223,3093.9,3092.8,3.29791965]
[1720520252004,3.23223,3093.9,3093.0,3.23301]
[1720520252161,3.23223,3093.9,3092.1,3.29864965]
[1720520252162,8.53633,3094.2,3093.3,3.23278]
[1720520252356,8.53633,3094.2,3092.4,2.3026]
[1720520252357,3.23245,3093.7,3092.4,2.3026]
[1720520252799,3.23245,3093.7,3092.9,3.2332]
[1720520253097,3.23265,3093.5,3092.5,3.23359]
[1720520253298,3.878958,3093.6,3092.3,3.23377]
[1720520253299,3.23313,3093.0,3092.3,3.23377]
[1720520253456,3.23286,3093.3,3092.4,3.23365]
[1720520253653,3.0,3093.5,3092.8,3.23323]
[1720520253895,3.0,3093.5,3092.9,3.2332]
[1720520254062,3.0,3093.5,3092.7,3.23335]
[1720520254270,3.0,3093.5,3092.8,3.23323]
[1720520254466,4.919439,3093.5,3092.7,6.46671]
[1720520254776,3.0,3093.5,3092.8,3.23323]
[1720520254976,3.0,3093.6,3092.8,3.29789085]
[1720520255177,3.0,3093.6,3093.0,3.2331]
[1720520255772,3.0,3093.7,3093.0,3.2331]
[1720520255959,0.623233,3093.6,3093.0,3.2331]
[1720520256161,3.0,3093.7,3093.0,3.2331]
[1720520256496,3.0,3093.8,3093.0,3.2331]
[1720520256801,3.23237,3093.7,3093.0,3.2331]
[1720520257001,3.23237,3093.7,3092.8,3.23323]
[1720520257215,0.68785845,3093.6,3092.6,3.23348]
[1720520257501,0.623237,3093.6,3092.6,3.23348]
[1720520257701,0.48866474,3093.7,3092.7,3.2334]
[1720520257702,3.23269,3093.4,3092.7,3.2334]
[1720520258055,3.23248,3093.6,3092.2,3.23393]
[1720520258365,3.23248,3093.6,3092.7,3.23331]
[1720520258560,3.23294,3093.2,3092.4,3.23371]
[1720520258800,0.323294,3093.1,3092.4,3.23371]
[1720520259005,0.323294,3093.1,3092.4,3.23366]
[1720520259212,0.323294,3093.1,3092.5,0.06466922]
[1720520259496,10.59211,3094.0,3093.0,3.2331]
[1720520259710,3.23232,3093.8,3093.0,3.2331]
[1720520259857,0.623232,3093.7,3093.0,3.2331]
[1720520260053,3.623232,3093.7,3093.0,3.2331]
[1720520260501,0.623232,3093.7,3093.0,3.2331]
[1720520260700,3.23209,3094.0,3093.0,3.2331]
[1720520260701,3.0,3093.9,3093.0,3.2331]
[1720520261404,7.84866474,3094.4,3093.6,3.23247]
[1720520261621,7.36,3094.4,3094.1,3.23195]
[1720520261762,7.36,3094.4,3093.7,0.06463587]
[1720520261763,0.33764821,3094.8,3094.4,3.23163]
[1720520262778,0.06462145,3094.7,3093.3,2.283]
[1720520262985,3.59483997,3094.6,3093.6,3.23247]
[1720520263166,2.412,3094.5,3093.2,3.23283]
[1720520263369,2.412,3094.5,3093.3,3.23272]
[1720520263370,3.23202,3094.1,3093.3,3.23272]
[1720520263604,0.323202,3094.0,3092.8,3.23329]
[1720520263811,3.23229,3093.8,3092.7,5.51586]
[1720520264104,3.23229,3093.8,3092.7,2.2825]
[1720520264302,3.23229,3093.8,3093.0,3.23309]
[1720520264866,6.46465,3093.8,3092.9,3.23312]
[1720520265067,0.646465,3093.7,3092.9,3.23312]
[1720520265362,0.646465,3093.7,3092.7,2.2825]
[1720520265363,3.23281,3093.3,3092.4,3.23365]
[1720520265562,2.54902145,3093.7,3092.2,3.23389]
[1720520265563,3.29752145,3093.2,3092.2,3.23389]
[1720520265802,3.23263,3093.5,3092.6,3.2335]
[1720520266030,0.32972515,3093.4,3092.3,3.23378]
[1720520266191,3.23297,3093.2,3092.3,3.23378]
[1720520266690,0.33762505,3093.3,3092.5,3.23362]
[1720520266906,3.23349,3092.7,3091.5,0.1153191]
[1720520267232,0.646673,3092.7,3092.0,3.23413]
[1720520267523,0.646673,3092.7,3091.9,3.23418]
[1720520267524,0.646673,3092.7,3092.1,3.23398]
[1720520267695,3.23304,3093.1,3091.9,3.2342]
[1720520267904,6.46659,3092.9,3092.1,3.23403]
[1720520268104,3.23328,3092.9,3092.1,3.23403]
[1720520268286,3.23348,3092.7,3091.9,3.2342]
[1720520268491,3.23353,3092.6,3091.7,3.23438]
[1720520268706,3.23353,3092.6,3091.8,3.0]
[1720520269331,3.556753,3092.7,3091.9,3.23424]
[1720520269715,3.23311,3093.0,3092.2,3.23393]
[1720520269934,3.86879251,3093.1,3092.2,3.23393]
[1720520270140,3.86879251,3093.1,3092.6,3.23352]
[1720520270141,0.63573251,3093.1,3092.6,3.23352]
[1720520270322,7.36,3093.4,3092.7,3.23335]
[1720520270992,10.59272,3093.4,3092.6,3.23352]
[1720520271239,3.23302,3093.1,3092.2,3.23387]
[1720520271390,3.29772145,3093.0,3092.0,6.46815]
[1720520271728,3.88634414,3092.9,3092.0,3.23406]
[1720520271938,0.06462145,3092.8,3091.8,3.23426]
[1720520272240,3.23353,3092.6,3091.8,3.23426]
[1720520272540,3.23366,3092.5,3091.6,3.23454]
[1720520272703,0.3944496,3092.4,3091.6,3.23449]
[1720520272895,0.3944496,3092.4,3091.5,0.1153191]
[1720520273093,3.23401,3092.2,3091.5,0.1153191]
[1720520273304,3.29870145,3092.1,3091.5,0.1153191]
[1720520273511,3.23416,3092.0,3091.5,0.1153191]
[1720520273745,0.7179076,3091.9,3091.5,0.1153191]
[1720520274444,3.23439,3091.8,3091.5,0.1153191]
[1720520274742,0.32982815,3092.4,3091.5,0.1153191]
[1720520274940,3.23395,3092.2,3091.5,0.1153191]
[1720520275315,6.46764,3092.4,3091.5,0.1153191]
[1720520275521,6.23386,3092.3,3091.5,3.3499791]
[1720520275842,2.2802,3092.8,3091.8,3.23427]
[1720520275843,5.5136,3092.8,3091.8,3.23427]
[1720520276150,3.23358,3092.6,3091.8,3.23427]
[1720520276354,3.0,3092.5,3091.9,6.46842]
[1720520276653,0.61666741,3092.7,3092.1,3.23402]
[1720520276817,2.2802,3092.8,3092.1,3.23402]
[1720520277222,3.0,3093.0,3092.1,3.23402]
[1720520278944,7.36,3093.1,3092.4,3.23372]
[1720520279149,0.33762505,3093.3,3092.7,3.23336]
[1720520279852,0.33762505,3093.3,3092.7,3.23341]
[1720520280213,1.10738756,3093.3,3092.7,3.23341]
[1720520280554,1.10738756,3093.3,3092.6,3.23345]
[1720520280760,1.10738756,3093.3,3092.7,3.23341]
[1720520281479,0.33762505,3093.3,3092.7,0.06466789]
[1720520281634,0.33762505,3093.3,3092.3,3.23379]
[1720520281635,0.33762505,3093.3,3093.0,3.23304]
[1720520281831,7.36,3093.5,3093.0,3.23304]
[1720520282075,7.36,3093.5,3093.2,3.23288]
[1720520282245,7.36,3093.9,3093.2,3.23288]
[1720520282648,3.0,3093.8,3093.3,3.23271]
[1720520282972,7.36,3094.3,3093.5,6.46512]
[1720520283173,7.36,3094.3,3092.7,3.23335]
[1720520283174,0.736,3094.2,3093.2,3.23286]
[1720520283344,7.36,3094.7,3093.9,3.23211]
[1720520283550,0.3376991,3094.6,3093.9,3.23209]
[1720520283857,0.3376991,3094.6,3093.1,2.3223]
[1720520283858,0.3376991,3094.6,3094.1,3.23192]
[1720520284056,7.36,3094.7,3094.1,3.23192]
[1720520284057,7.36,3094.7,3094.1,3.23186]
[1720520284244,0.736,3094.6,3094.1,3.23185]
[1720520284448,0.736,3094.6,3094.2,3.23178]
[1720520284834,0.33771282,3094.5,3094.2,3.23178]
[1720520285482,0.33771282,3094.5,3093.6,3.29706929]
[1720520285483,0.33771282,3094.5,3093.7,3.23234]
[1720520285791,0.33771282,3094.5,3094.2,3.23179]
[1720520285952,0.33771282,3094.5,3094.4,3.23164]
[1720520287237,0.33771282,3094.5,3094.4,6.46328]
[1720520290157,0.33771282,3094.5,3094.4,9.69492]
[1720520290371,7.36,3095.4,3095.0,3.23101]
[1720520290570,7.36,3095.8,3095.1,3.23089]
[1720520290755,1.985,3095.7,3095.1,3.23089]
[1720520290951,1.985,3095.7,3094.9,3.23104]
[1720520290952,2.32266397,3095.7,3094.9,3.23104]
[1720520291275,2.32266397,3095.7,3094.7,3.23128]
[1720520291476,2.32266397,3095.7,3094.9,3.23103]
[1720520292913,5.32266397,3095.7,3094.9,3.23103]
[1720520293185,1.2682664,3095.6,3094.7,6.46252]
[1720520293382,1.2682664,3095.6,3094.8,3.23122]
[1720520293795,1.2682664,3095.6,3094.9,3.23111]
[1720520294170,1.2682664,3095.6,3095.0,3.231]
[1720520295199,1.2682664,3095.6,3095.0,3.23092]
[1720520295353,5.32266397,3095.7,3093.6,1.5]
[1720520295354,0.33766397,3095.7,3095.4,3.23058]
[1720520295552,0.33766397,3095.7,3095.4,6.46109]
[1720520295796,0.33766397,3095.7,3095.4,3.23051]
[1720520296021,0.33766397,3095.7,3095.2,3.23074]
[1720520296150,1.10743037,3095.7,3094.7,3.23128]
[1720520296357,0.33766397,3095.7,3095.3,3.23063]
[1720520297965,0.33766397,3095.7,3095.3,6.46127]
[1720520298259,0.33766397,3095.7,3095.4,3.23059]
[1720520298610,0.33766397,3095.7,3095.6,3.23039]
[1720520298754,3.0,3096.2,3095.6,6.46078]
[1720520298755,7.36,3096.1,3095.6,6.46078]
[1720520298961,7.36,3096.5,3096.0,3.22989]
[1720520299928,7.36,3096.5,3096.0,6.45979]
[1720520300132,12.49,3096.9,3096.2,3.2297]
[1720520300133,7.36,3096.9,3096.2,3.2297]
[1720520300345,7.36,3097.3,3096.4,6.45896]
[1720520300549,0.33750067,3096.8,3096.4,6.45896]
[1720520300707,7.36,3097.3,3096.4,6.45896]
[1720520300907,7.36,3097.3,3096.5,3.22945]
[1720520301620,0.33750082,3097.2,3096.5,3.22945]
[1720520301817,0.33750082,3097.2,3096.2,3.2297]
[1720520302046,0.76975008,3097.1,3096.2,6.45939]